[Event "FIDE Women World Blitz 2021"]
[Site "Warsaw"]
[Date "2021.12.29"]
[Round "8.39"]
[White "Doluhanova, Evgeniya"]
[Black "Bartel, Marta"]
[Result "1-0"]
[ECO "A11"]
[WhiteElo "2237"]
[BlackElo "2192"]
[Annotator "NA"]
[PlyCount "91"]
[EventDate "2021.12.29"]
[EventType "swiss"]
[EventCountry "POL"]
[Tiebreak "Cut1 Buchholz"]
[SourceTitle "playchess.com"]
[Source "ChessBase"]
[SourceQuality "1"]
[TimeControl "180+2"]

1. Nf3 {[%emt 0:00:01]} Nf6 {[%emt 0:00:01]} 2. b3 {[%emt 0:00:01]} g6 {
[%emt 0:00:04]} 3. Bb2 {[%emt 0:00:01]} Bg7 {[%emt 0:00:01]} 4. e3 {[%emt 0:00:
01]} d5 {[%emt 0:00:06]} 5. c4 {[%emt 0:00:02]} c6 {[%emt 0:00:04]} 6. Nc3 {
[%emt 0:00:04]} O-O {[%emt 0:00:02]} 7. Be2 {[%emt 0:00:02]} Nbd7 {[%emt 0:00:
06]} 8. d4 {[%emt 0:00:01]} a5 {[%emt 0:00:07]} 9. O-O {[%emt 0:00:04]} dxc4 {
[%emt 0:00:29]} 10. bxc4 {[%emt 0:00:07]} Qc7 {[%emt 0:00:14]} 11. Ba3 {
[%emt 0:00:08]} Re8 {[%emt 0:00:02]} 12. Rb1 {[%emt 0:00:19]} e5 {[%emt 0:00:
04]} 13. d5 {[%emt 0:00:04]} e4 {[%emt 0:00:10]} 14. Nd4 {[%emt 0:00:17]} Ne5 {
[%emt 0:00:06]} 15. d6 {[%emt 0:00:22]} Qd8 {[%emt 0:00:27]} 16. Na4 {[%emt 0:
00:07]} Nfd7 {[%emt 0:00:03]} 17. h3 {[%emt 0:00:09]} f5 {[%emt 0:00:03]} 18.
f4 {[%emt 0:00:06]} exf3 {[%emt 0:00:02]} 19. Nxf3 {[%emt 0:00:02]} Nxf3+ {
[%emt 0:00:02]} 20. Rxf3 {[%emt 0:00:13]} Ne5 {[%emt 0:00:01]} 21. Rf1 {
[%emt 0:00:02]} Nd7 {[%emt 0:00:18]} 22. c5 {[%emt 0:00:24]} Rxe3 {[%emt 0:00:
10]} 23. Bc4+ {[%emt 0:00:02]} Kh8 {[%emt 0:00:01]} 24. Bc1 {[%emt 0:00:03]}
Re4 {[%emt 0:00:06]} 25. Bd3 {[%emt 0:00:21]} Re8 {[%emt 0:00:18]} 26. Bb2 {
[%emt 0:00:13]} Bxb2 {[%emt 0:00:29]} 27. Rxb2 {[%emt 0:00:01]} Qf6 {[%emt 0:
00:01]} 28. Re2 {[%emt 0:00:03]} Rxe2 {[%emt 0:00:13]} 29. Qxe2 {[%emt 0:00:02]
} Ne5 {[%emt 0:00:03]} 30. Re1 {[%emt 0:00:05]} Nxd3 {[%emt 0:00:02]} 31. Qxd3
{[%emt 0:00:05]} Be6 {[%emt 0:00:03]} 32. Nb6 {[%emt 0:00:07]} Rd8 {[%emt 0:00:
01]} 33. Qe3 {[%emt 0:00:02]} Bf7 {[%emt 0:00:05]} 34. d7 {[%emt 0:00:02]} Bxa2
{[%emt 0:00:03]} 35. Qe8+ {[%emt 0:00:03]} Kg7 {[%emt 0:00:01]} 36. Re7+ {
[%emt 0:00:07]} Kh6 37. Qxd8 {[%emt 0:00:04]} Qd4+ {[%emt 0:00:02]} 38. Kh1 {
[%emt 0:00:02]} Qd1+ {[%emt 0:00:03]} 39. Kh2 {[%emt 0:00:02]} Qd4 {[%emt 0:00:
03]} 40. Qf8+ {[%emt 0:00:01]} Kg5 {[%emt 0:00:02]} 41. Re1 {[%emt 0:00:06]}
Qf4+ {[%emt 0:00:02]} 42. Kh1 {[%emt 0:00:01]} Bd5 {[%emt 0:00:01]} 43. Qe7+ {
[%emt 0:00:02]} Kh5 {[%emt 0:00:02]} 44. Qe2+ {[%emt 0:00:02]} Kh6 {[%emt 0:00:
00]} 45. Qe3 {[%emt 0:00:01]} Qxe3 {[%emt 0:00:03]} 46. Rxe3 {[%emt 0:00:01]}
1-0

[Event "FIDE Women World Blitz 2021"]
[Site "Warsaw"]
[Date "2021.12.29"]
[Round "9.1"]
[White "Kamalidenova, Meruert"]
[Black "Assaubayeva, Bibisara"]
[Result "0-1"]
[ECO "C60"]
[WhiteElo "2339"]
[BlackElo "2400"]
[Annotator "NA"]
[PlyCount "58"]
[EventDate "2021.12.29"]
[EventType "swiss"]
[EventCountry "POL"]
[Tiebreak "Cut1 Buchholz"]
[SourceTitle "playchess.com"]
[Source "ChessBase"]
[SourceQuality "1"]
[TimeControl "180+2"]

1. e4 {[%emt 0:00:02]} e5 {[%emt 0:00:01]} 2. Nf3 {[%emt 0:00:02]} Nc6 {
[%emt 0:00:00]} 3. Bb5 {[%emt 0:00:01]} a6 {[%emt 0:00:01]} 4. Ba4 {[%emt 0:00:
02]} d6 {[%emt 0:00:02]} 5. c3 {[%emt 0:00:05]} Bd7 {[%emt 0:00:01]} 6. O-O {
[%emt 0:00:04]} g6 {[%emt 0:00:02]} 7. d4 {[%emt 0:00:01]} Bg7 {[%emt 0:00:02]}
8. h3 {[%emt 0:00:12]} Nf6 {[%emt 0:00:19]} 9. Bc2 {[%emt 0:00:06]} O-O {
[%emt 0:00:04]} 10. Re1 {[%emt 0:00:04]} Qe8 {[%emt 0:00:05]} 11. Nbd2 {
[%emt 0:00:03]} Nh5 {[%emt 0:00:06]} 12. Nf1 {[%emt 0:00:02]} Rd8 {[%emt 0:00:
08]} 13. Be3 {[%emt 0:00:06]} Kh8 {[%emt 0:00:03]} 14. Qd2 {[%emt 0:00:20]} f5
{[%emt 0:00:17]} 15. exf5 {[%emt 0:00:03]} gxf5 {[%emt 0:00:03]} 16. dxe5 {
[%emt 0:00:03]} dxe5 {[%emt 0:00:05]} 17. Bc5 {[%emt 0:00:11]} Rg8 {[%emt 0:00:
08]} 18. Qe3 {[%emt 0:00:24]} e4 {[%emt 0:00:13]} 19. N3d2 {[%emt 0:00:20]} Qg6
{[%emt 0:00:13]} 20. Nxe4 {[%emt 0:00:39]} b6 {[%emt 0:00:37]} 21. Ba3 {
[%emt 0:00:11]} Bh6 {[%emt 0:00:07]} 22. Ng5 {[%emt 0:00:32]} Bxg5 {[%emt 0:00:
09]} 23. Qf3 {[%emt 0:00:01]} Bf6 {[%emt 0:00:04]} 24. g3 {[%emt 0:00:05]} Ne5
{[%emt 0:00:05]} 25. Qe3 {[%emt 0:00:04]} Bc6 {[%emt 0:00:05]} 26. Bd1 {
[%emt 0:00:05]} Rxd1 {[%emt 0:00:11]} 27. Rexd1 {[%emt 0:00:03]} Nf3+ {[%emt 0:
00:01]} 28. Kh1 {[%emt 0:00:03]} f4 {[%emt 0:00:12]} 29. Qe6 {[%emt 0:00:06]}
Nd4+ {[%emt 0:00:02]} 0-1

[Event "FIDE Women World Blitz 2021"]
[Site "Warsaw"]
[Date "2021.12.29"]
[Round "9.1"]
[White "Kubicka, Anna"]
[Black "Gil Quilez, Sonia"]
[Result "1-0"]
[ECO "B12"]
[WhiteElo "2273"]
[BlackElo "2122"]
[Annotator "NA"]
[PlyCount "53"]
[EventDate "2021.12.29"]
[EventType "swiss"]
[EventCountry "POL"]
[Tiebreak "Cut1 Buchholz"]
[SourceTitle "playchess.com"]
[Source "ChessBase"]
[SourceQuality "1"]
[TimeControl "180+2"]

1. e4 {[%emt 0:00:01]} c6 {[%emt 0:00:00]} 2. d4 {[%emt 0:00:01]} d5 {[%emt 0:
00:01]} 3. e5 {[%emt 0:00:01]} c5 {[%emt 0:00:01]} 4. dxc5 {[%emt 0:00:02]} Nc6
{[%emt 0:00:03]} 5. Nf3 {[%emt 0:00:07]} Bg4 {[%emt 0:00:02]} 6. Bb5 {[%emt 0:
00:03]} e6 {[%emt 0:00:09]} 7. Be3 {[%emt 0:00:01]} Qc7 {[%emt 0:00:10]} 8. O-O
{[%emt 0:00:08]} Nge7 {[%emt 0:00:05]} 9. c3 {[%emt 0:00:12]} a6 {[%emt 0:00:
18]} 10. Bxc6+ {[%emt 0:00:09]} Nxc6 {[%emt 0:00:01]} 11. Bd4 {[%emt 0:00:01]}
a5 {[%emt 0:00:30]} 12. Nbd2 {[%emt 0:00:08]} Be7 {[%emt 0:00:14]} 13. h3 {
[%emt 0:00:02]} Bh5 {[%emt 0:00:01]} 14. Re1 {[%emt 0:00:03]} O-O {[%emt 0:00:
10]} 15. Nf1 {[%emt 0:00:11]} a4 {[%emt 0:00:27]} 16. g4 {[%emt 0:00:02]} Bg6 {
[%emt 0:00:01]} 17. Ng3 {[%emt 0:00:04]} h6 {[%emt 0:00:06]} 18. h4 {[%emt 0:
00:02]} Na5 {[%emt 0:00:07]} 19. g5 {[%emt 0:00:12]} Bxc5 {[%emt 0:00:09]} 20.
gxh6 {[%emt 0:00:15]} gxh6 {[%emt 0:00:01]} 21. h5 {[%emt 0:00:01]} Bh7 {
[%emt 0:00:11]} 22. Qd2 {[%emt 0:00:03]} Kg7 {[%emt 0:00:09]} 23. Qf4 {[%emt 0:
00:23]} Nc4 {[%emt 0:00:09]} 24. Qf6+ {[%emt 0:00:05]} Kg8 {[%emt 0:00:05]} 25.
Qxh6 {[%emt 0:00:10]} Be7 {[%emt 0:00:04]} 26. Ng5 {[%emt 0:00:06]} Kh8 {
[%emt 0:00:25]} 27. Qxh7# {[%emt 0:00:02]} 1-0

[Event "FIDE Women World Blitz 2021"]
[Site "Warsaw"]
[Date "2021.12.29"]
[Round "9.2"]
[White "Shuvalova, Polina"]
[Black "Vaishali R"]
[Result "0-1"]
[ECO "B30"]
[WhiteElo "2515"]
[BlackElo "2405"]
[Annotator "ChessBase"]
[PlyCount "58"]
[EventDate "2021.12.29"]
[EventType "swiss"]
[EventCountry "POL"]
[Tiebreak "Cut1 Buchholz"]
[SourceTitle "playchess.com"]
[Source "ChessBase"]
[SourceQuality "1"]
[TimeControl "180+2"]

1. e4 {[%emt 0:00:01]} c5 {[%emt 0:00:02]} 2. Nf3 {[%emt 0:00:01]} Nc6 {
[%emt 0:00:01]} 3. Bb5 {[%emt 0:00:02]} e6 {[%emt 0:00:02]} 4. Bxc6 {[%emt 0:
00:03]} bxc6 {[%emt 0:00:01]} 5. d3 {[%emt 0:00:07]} Ne7 {[%emt 0:00:07]} 6. h4
{[%emt 0:00:03]} h5 {[%emt 0:00:01]} 7. b3 {[%emt 0:00:11]} d6 {[%emt 0:00:04]}
8. e5 {[%emt 0:00:01]} Nf5 {[%emt 0:00:03]} 9. Bb2 {[%emt 0:00:08]} f6 {
[%emt 0:00:51]} 10. exd6 {[%emt 0:00:01]} Bxd6 {[%emt 0:00:02]} 11. Nbd2 {
[%emt 0:00:02]} e5 {[%emt 0:00:08]} 12. Qe2 {[%emt 0:00:02]} Be6 {[%emt 0:00:
12]} 13. Ne4 {[%emt 0:00:01]} Be7 {[%emt 0:00:01]} 14. g3 {[%emt 0:00:02]} Nd4
{[%emt 0:00:18]} 15. Nxd4 {[%emt 0:00:11]} cxd4 {[%emt 0:00:01]} 16. Bc1 {
[%emt 0:00:09]} Bd5 {[%emt 0:00:13]} 17. f3 {[%emt 0:00:04]} Qd7 {[%emt 0:00:
06]} 18. Bd2 {[%emt 0:00:01]} c5 {[%emt 0:00:11]} 19. a4 {[%emt 0:00:02]} Qc6 {
[%emt 0:00:03]} 20. Rf1 {[%emt 0:00:13]} a6 {[%emt 0:00:05]} 21. f4 {[%emt 0:
00:13]} f5 {[%emt 0:00:08]} 22. Ng5 {[%emt 0:00:12]} e4 {[%emt 0:00:01]} 23.
dxe4 {[%emt 0:00:11]} fxe4 {[%emt 0:00:01]} 24. O-O-O {[%emt 0:00:02]} c4 {
[%emt 0:00:14]} 25. Nxe4 {[%emt 0:00:13]} cxb3 {[%emt 0:00:17]} 26. c4 {
[%emt 0:00:35]} Ba3+ {[%emt 0:00:12]} 27. Kb1 {[%emt 0:00:02]} Bxe4+ {[%emt 0:
00:02]} 28. Ka1 {[%emt 0:00:04]} O-O {[%emt 0:00:02]} 29. Bc1 {[%emt 0:00:08]}
Qxa4 {[%emt 0:00:04]} 0-1

[Event "FIDE Women World Blitz 2021"]
[Site "Warsaw"]
[Date "2021.12.29"]
[Round "9.2"]
[White "Yakimova, Mariya"]
[Black "Jakubowska, Anna"]
[Result "1-0"]
[ECO "E04"]
[WhiteElo "2219"]
[BlackElo "2106"]
[Annotator "NA"]
[PlyCount "121"]
[EventDate "2021.12.29"]
[EventType "swiss"]
[EventCountry "POL"]
[Tiebreak "Cut1 Buchholz"]
[SourceTitle "playchess.com"]
[Source "ChessBase"]
[SourceQuality "1"]
[TimeControl "180+2"]

1. d4 {[%emt 0:00:01]} d5 {[%emt 0:00:01]} 2. c4 {[%emt 0:00:01]} c6 {[%emt 0:
00:01]} 3. Nf3 {[%emt 0:00:01]} Nf6 {[%emt 0:00:01]} 4. Nc3 {[%emt 0:00:02]} e6
{[%emt 0:00:00]} 5. g3 {[%emt 0:00:01]} dxc4 {[%emt 0:00:04]} 6. Bg2 {[%emt 0:
00:01]} b5 {[%emt 0:00:03]} 7. O-O {[%emt 0:00:09]} Bb7 {[%emt 0:00:01]} 8. e4
{[%emt 0:00:11]} Be7 {[%emt 0:00:06]} 9. e5 {[%emt 0:00:15]} Nd5 {[%emt 0:00:
02]} 10. Ne4 {[%emt 0:00:01]} O-O {[%emt 0:00:03]} 11. Bg5 {[%emt 0:00:01]} f6
{[%emt 0:00:07]} 12. exf6 {[%emt 0:00:05]} gxf6 {[%emt 0:00:24]} 13. Bh6 {
[%emt 0:00:01]} Re8 {[%emt 0:00:12]} 14. Re1 {[%emt 0:00:01]} Nd7 {[%emt 0:00:
15]} 15. Bh3 {[%emt 0:00:01]} Nf8 {[%emt 0:00:02]} 16. Qc2 {[%emt 0:00:32]} Nb4
{[%emt 0:00:07]} 17. Qe2 {[%emt 0:00:04]} Nd3 {[%emt 0:00:03]} 18. Red1 {
[%emt 0:00:02]} Qd5 {[%emt 0:00:23]} 19. Bg2 {[%emt 0:00:08]} Qh5 {[%emt 0:00:
03]} 20. Be3 {[%emt 0:00:09]} Ng6 {[%emt 0:00:15]} 21. b3 {[%emt 0:00:03]} c5 {
[%emt 0:00:06]} 22. Nxc5 {[%emt 0:00:10]} Nxc5 {[%emt 0:00:01]} 23. dxc5 {
[%emt 0:00:09]} Bxc5 {[%emt 0:00:04]} 24. bxc4 {[%emt 0:00:09]} Ne5 {[%emt 0:
00:10]} 25. Nd4 {[%emt 0:00:09]} Qxe2 {[%emt 0:00:03]} 26. Nxe2 {[%emt 0:00:01]
} Bxg2 {[%emt 0:00:05]} 27. Bxc5 {[%emt 0:00:26]} Bf3 {[%emt 0:00:09]} 28. Re1
{[%emt 0:00:01]} Nd3 {[%emt 0:00:02]} 29. Nd4 {[%emt 0:00:04]} Nxe1 {[%emt 0:
00:10]} 30. Rxe1 {[%emt 0:00:01]} Bg4 {[%emt 0:00:06]} 31. cxb5 {[%emt 0:00:26]
} e5 {[%emt 0:00:00]} 32. Nc6 {[%emt 0:00:02]} a6 {[%emt 0:00:06]} 33. b6 {
[%emt 0:00:03]} Bc8 {[%emt 0:00:23]} 34. Rd1 {[%emt 0:00:10]} Bb7 {[%emt 0:00:
06]} 35. Ne7+ {[%emt 0:00:01]} Kh8 {[%emt 0:00:06]} 36. Rd7 {[%emt 0:00:15]}
Bf3 {[%emt 0:00:01]} 37. h4 {[%emt 0:00:13]} Rad8 {[%emt 0:00:04]} 38. Rxd8 {
[%emt 0:00:03]} Rxd8 {[%emt 0:00:01]} 39. g4 {[%emt 0:00:01]} Rd1+ {[%emt 0:00:
11]} 40. Kh2 {[%emt 0:00:01]} Rc1 {[%emt 0:00:02]} 41. Be3 {[%emt 0:00:02]} Kg7
{[%emt 0:00:07]} 42. Bxc1 {[%emt 0:00:01]} Kf7 {[%emt 0:00:02]} 43. Nf5 {
[%emt 0:00:02]} Ke6 {[%emt 0:00:01]} 44. Be3 {[%emt 0:00:00]} Kd7 {[%emt 0:00:
01]} 45. Kg3 {[%emt 0:00:01]} Bd5 {[%emt 0:00:01]} 46. g5 {[%emt 0:00:02]} fxg5
47. hxg5 {[%emt 0:00:01]} Bxa2 {[%emt 0:00:02]} 48. Nh4 {[%emt 0:00:03]} a5 {
[%emt 0:00:04]} 49. Nf3 {[%emt 0:00:01]} e4 {[%emt 0:00:03]} 50. Nd4 {[%emt 0:
00:03]} a4 {[%emt 0:00:03]} 51. Nb5 {[%emt 0:00:01]} Kc6 {[%emt 0:00:02]} 52.
Nc3 {[%emt 0:00:05]} Bb3 {[%emt 0:00:01]} 53. Nxe4 {[%emt 0:00:02]} a3 {
[%emt 0:00:03]} 54. Nf6 {[%emt 0:00:01]} a2 {[%emt 0:00:03]} 55. Bd4 {[%emt 0:
00:01]} Bc2 {[%emt 0:00:00]} 56. f4 {[%emt 0:00:02]} Bb1 {[%emt 0:00:03]} 57.
Kh4 {[%emt 0:00:02]} Kb7 {[%emt 0:00:03]} 58. Kh5 {[%emt 0:00:01]} Kc6 {
[%emt 0:00:00]} 59. Kh6 {[%emt 0:00:01]} Kb7 {[%emt 0:00:03]} 60. Nxh7 {
[%emt 0:00:01]} Kc6 {[%emt 0:00:03]} 61. Nf6 {[%emt 0:00:01]} 1-0

[Event "FIDE Women World Blitz 2021"]
[Site "Warsaw"]
[Date "2021.12.29"]
[Round "9.3"]
[White "Koneru, Humpy"]
[Black "Goryachkina, Aleksandra"]
[Result "1-0"]
[ECO "E14"]
[WhiteElo "2586"]
[BlackElo "2604"]
[Annotator "ChessBase"]
[PlyCount "59"]
[EventDate "2021.12.29"]
[EventType "swiss"]
[EventCountry "POL"]
[Tiebreak "Cut1 Buchholz"]
[SourceTitle "playchess.com"]
[Source "ChessBase"]
[SourceQuality "1"]
[TimeControl "180+2"]

1. d4 {[%emt 0:00:01]} Nf6 {[%emt 0:00:01]} 2. c4 {[%emt 0:00:01]} e6 {[%emt 0:
00:01]} 3. Nf3 {[%emt 0:00:05]} d5 {[%emt 0:00:01]} 4. e3 {[%emt 0:00:14]} b6 {
[%emt 0:00:04]} 5. b3 {[%emt 0:00:07]} Bd6 {[%emt 0:00:04]} 6. Bd3 {[%emt 0:00:
05]} O-O {[%emt 0:00:03]} 7. O-O {[%emt 0:00:05]} Bb7 {[%emt 0:00:03]} 8. Bb2 {
[%emt 0:00:01]} Nbd7 {[%emt 0:00:10]} 9. Nbd2 {[%emt 0:00:10]} Ne4 {[%emt 0:00:
20]} 10. Qe2 {[%emt 0:00:13]} f5 {[%emt 0:00:11]} 11. Rfd1 {[%emt 0:00:29]} Qf6
{[%emt 0:00:09]} 12. Rac1 {[%emt 0:00:22]} g5 {[%emt 0:00:22]} 13. cxd5 {
[%emt 0:01:02]} exd5 {[%emt 0:00:02]} 14. Ba6 {[%emt 0:00:01]} Bxa6 {[%emt 0:
00:11]} 15. Qxa6 {[%emt 0:00:02]} g4 {[%emt 0:00:07]} 16. Ne5 {[%emt 0:00:05]}
Nxe5 {[%emt 0:00:23]} 17. dxe5 {[%emt 0:00:03]} Bxe5 {[%emt 0:00:02]} 18. Bxe5
{[%emt 0:00:03]} Qxe5 {[%emt 0:00:01]} 19. Nxe4 {[%emt 0:00:08]} dxe4 {[%emt 0:
01:00]} 20. Qc4+ {[%emt 0:00:07]} Kh8 {[%emt 0:00:04]} 21. Qxc7 {[%emt 0:00:05]
} Qxc7 {[%emt 0:00:01]} 22. Rxc7 {[%emt 0:00:01]} Rfd8 {[%emt 0:00:08]} 23.
Rxd8+ {[%emt 0:00:04]} Rxd8 {[%emt 0:00:01]} 24. g3 {[%emt 0:00:03]} a5 {
[%emt 0:00:14]} 25. Rc6 {[%emt 0:00:06]} Rd1+ {[%emt 0:00:05]} 26. Kg2 {
[%emt 0:00:00]} Kg7 {[%emt 0:00:02]} 27. Rxb6 {[%emt 0:00:03]} Rd2 {[%emt 0:00:
02]} 28. a4 {[%emt 0:00:02]} Rb2 {[%emt 0:00:03]} 29. Kf1 {[%emt 0:00:06]} h5 {
[%emt 0:00:02]} 30. Kg2 {[%emt 0:00:01]} 1-0

[Event "FIDE Women World Blitz 2021"]
[Site "Warsaw"]
[Date "2021.12.29"]
[Round "9.3"]
[White "Nur-Mukhametova, Alisa"]
[Black "Smirnova, Ekaterina"]
[Result "0-1"]
[ECO "A11"]
[WhiteElo "2225"]
[BlackElo "2196"]
[Annotator "NA"]
[PlyCount "118"]
[EventDate "2021.12.29"]
[EventType "swiss"]
[EventCountry "POL"]
[Tiebreak "Cut1 Buchholz"]
[SourceTitle "playchess.com"]
[Source "ChessBase"]
[SourceQuality "1"]
[TimeControl "180+2"]

1. Nf3 {[%emt 0:00:03]} Nf6 {[%emt 0:00:00]} 2. g3 {[%emt 0:00:01]} d5 {
[%emt 0:00:01]} 3. c4 {[%emt 0:00:01]} c6 {[%emt 0:00:01]} 4. Qc2 {[%emt 0:00:
02]} Bg4 {[%emt 0:00:06]} 5. Bg2 {[%emt 0:00:03]} e6 {[%emt 0:00:02]} 6. O-O {
[%emt 0:00:05]} Nbd7 {[%emt 0:00:01]} 7. b3 {[%emt 0:00:05]} Be7 {[%emt 0:00:
02]} 8. Bb2 {[%emt 0:00:02]} O-O {[%emt 0:00:02]} 9. d3 {[%emt 0:00:03]} h6 {
[%emt 0:00:05]} 10. Nbd2 {[%emt 0:00:02]} a5 {[%emt 0:00:02]} 11. a3 {[%emt 0:
00:30]} Qc7 {[%emt 0:00:18]} 12. e4 {[%emt 0:00:12]} dxe4 {[%emt 0:00:09]} 13.
dxe4 {[%emt 0:00:12]} e5 {[%emt 0:00:10]} 14. Nh4 {[%emt 0:00:30]} Rfe8 {
[%emt 0:00:19]} 15. Nf5 {[%emt 0:00:15]} Bf8 {[%emt 0:00:30]} 16. Rfe1 {
[%emt 0:00:24]} Rad8 {[%emt 0:00:06]} 17. Bc3 {[%emt 0:00:06]} Nc5 {[%emt 0:00:
16]} 18. Ne3 {[%emt 0:00:19]} Bh5 {[%emt 0:00:12]} 19. Bf1 {[%emt 0:00:14]} Bg6
{[%emt 0:00:04]} 20. f3 {[%emt 0:00:06]} b6 {[%emt 0:00:11]} 21. b4 {[%emt 0:
00:10]} axb4 {[%emt 0:00:01]} 22. axb4 {[%emt 0:00:01]} Ne6 {[%emt 0:00:01]}
23. Nb3 {[%emt 0:00:09]} Nd4 {[%emt 0:00:05]} 24. Bxd4 {[%emt 0:00:10]} exd4 {
[%emt 0:00:02]} 25. Nf5 {[%emt 0:00:03]} Bxb4 {[%emt 0:00:09]} 26. Red1 {
[%emt 0:00:00]} c5 {[%emt 0:00:09]} 27. Nh4 {[%emt 0:00:02]} Bh7 {[%emt 0:00:
16]} 28. Ng2 {[%emt 0:00:01]} Ra8 {[%emt 0:00:09]} 29. Nf4 {[%emt 0:00:03]} Qb7
{[%emt 0:00:04]} 30. Bd3 {[%emt 0:00:04]} Rxa1 {[%emt 0:00:04]} 31. Rxa1 {
[%emt 0:00:01]} Ra8 {[%emt 0:00:01]} 32. Rd1 {[%emt 0:00:04]} Qa7 {[%emt 0:00:
02]} 33. e5 {[%emt 0:00:02]} Bxd3 {[%emt 0:00:03]} 34. Nxd3 {[%emt 0:00:01]}
Nd7 {[%emt 0:00:07]} 35. Nxb4 {[%emt 0:00:01]} cxb4 {[%emt 0:00:01]} 36. f4 {
[%emt 0:00:02]} Nc5 {[%emt 0:00:04]} 37. Nxd4 {[%emt 0:00:03]} Qa3 {[%emt 0:00:
09]} 38. Rb1 {[%emt 0:00:03]} Qe3+ {[%emt 0:00:01]} 39. Qf2 {[%emt 0:00:01]}
Qd3 {[%emt 0:00:03]} 40. Rb2 {[%emt 0:00:02]} Ra1+ {[%emt 0:00:02]} 41. Kg2 {
[%emt 0:00:02]} Qe4+ {[%emt 0:00:02]} 42. Nf3 {[%emt 0:00:02]} Nd3 {[%emt 0:00:
02]} 43. Qe2 {[%emt 0:00:01]} Qxc4 {[%emt 0:00:05]} 44. Rc2 {[%emt 0:00:02]}
Qd5 {[%emt 0:00:02]} 45. Kh3 {[%emt 0:00:03]} Ra8 {[%emt 0:00:03]} 46. Nd2 {
[%emt 0:00:02]} Rd8 {[%emt 0:00:01]} 47. Ne4 {[%emt 0:00:03]} Qe6+ {[%emt 0:00:
01]} 48. Kg2 {[%emt 0:00:01]} b3 {[%emt 0:00:01]} 49. Rd2 {[%emt 0:00:02]} b2 {
[%emt 0:00:01]} 50. Rxb2 {[%emt 0:00:02]} Nxb2 {[%emt 0:00:02]} 51. Qxb2 {
[%emt 0:00:02]} Qc6 {[%emt 0:00:01]} 52. Qe2 {[%emt 0:00:02]} Rd4 {[%emt 0:00:
02]} 53. Kf3 {[%emt 0:00:01]} b5 {[%emt 0:00:01]} 54. Qe3 {[%emt 0:00:02]} Qd5
{[%emt 0:00:02]} 55. Qe1 {[%emt 0:00:03]} b4 {[%emt 0:00:01]} 56. f5 {[%emt 0:
00:02]} b3 {[%emt 0:00:01]} 57. Kf4 {[%emt 0:00:01]} Qxe4+ {[%emt 0:00:02]} 58.
Qxe4 {[%emt 0:00:01]} Rxe4+ {[%emt 0:00:01]} 59. Kxe4 {[%emt 0:00:02]} b2 {
[%emt 0:00:01]} 0-1

[Event "FIDE Women World Blitz 2021"]
[Site "Warsaw"]
[Date "2021.12.29"]
[Round "9.4"]
[White "Maltsevskaya, Aleksandra"]
[Black "Kosteniuk, Alexandra"]
[Result "0-1"]
[ECO "B11"]
[WhiteElo "2411"]
[BlackElo "2518"]
[Annotator "ChessBase"]
[PlyCount "96"]
[EventDate "2021.12.29"]
[EventType "swiss"]
[EventCountry "POL"]
[Tiebreak "Cut1 Buchholz"]
[SourceTitle "playchess.com"]
[Source "ChessBase"]
[SourceQuality "1"]
[TimeControl "180+2"]

1. e4 {[%emt 0:00:01]} c6 {[%emt 0:00:00]} 2. Nc3 {[%emt 0:00:06]} d5 {[%emt 0:
00:01]} 3. Nf3 {[%emt 0:00:03]} dxe4 {[%emt 0:00:01]} 4. Nxe4 {[%emt 0:00:01]}
Nf6 {[%emt 0:00:01]} 5. Qe2 {[%emt 0:00:01]} Nxe4 {[%emt 0:00:02]} 6. Qxe4 {
[%emt 0:00:01]} Nd7 {[%emt 0:00:00]} 7. Bc4 {[%emt 0:00:02]} Nf6 {[%emt 0:00:
01]} 8. Ne5 {[%emt 0:00:02]} e6 {[%emt 0:00:01]} 9. Qe2 {[%emt 0:00:01]} b5 {
[%emt 0:00:00]} 10. Bb3 {[%emt 0:00:11]} Qc7 {[%emt 0:00:04]} 11. d4 {[%emt 0:
00:11]} Bd6 {[%emt 0:00:05]} 12. c3 {[%emt 0:00:05]} O-O {[%emt 0:00:09]} 13.
O-O {[%emt 0:00:05]} a5 {[%emt 0:00:13]} 14. Re1 {[%emt 0:00:08]} c5 {[%emt 0:
00:34]} 15. Bg5 {[%emt 0:00:26]} Nd5 {[%emt 0:00:35]} 16. Bc2 {[%emt 0:00:48]}
f5 {[%emt 0:00:36]} 17. Rad1 {[%emt 0:00:13]} c4 {[%emt 0:00:08]} 18. a4 {
[%emt 0:00:06]} Bxe5 {[%emt 0:00:11]} 19. dxe5 {[%emt 0:00:11]} b4 {[%emt 0:00:
09]} 20. Rd4 {[%emt 0:00:13]} bxc3 {[%emt 0:00:07]} 21. bxc3 {[%emt 0:00:12]}
Ba6 {[%emt 0:00:06]} 22. Qf3 {[%emt 0:00:04]} Bb7 {[%emt 0:00:01]} 23. Qh3 {
[%emt 0:00:06]} Rf7 {[%emt 0:00:16]} 24. Rh4 {[%emt 0:00:13]} g6 {[%emt 0:00:
01]} 25. Rd4 {[%emt 0:00:02]} Qc6 {[%emt 0:00:03]} 26. Qg3 {[%emt 0:00:12]} Rc8
{[%emt 0:00:13]} 27. h4 {[%emt 0:00:01]} h5 {[%emt 0:00:06]} 28. Bh6 {[%emt 0:
00:05]} Kh7 {[%emt 0:00:01]} 29. Bg5 {[%emt 0:00:02]} Rcc7 {[%emt 0:00:02]} 30.
Bc1 {[%emt 0:00:02]} Rg7 {[%emt 0:00:03]} 31. Qg5 {[%emt 0:00:01]} Rcd7 {
[%emt 0:00:02]} 32. Qg3 {[%emt 0:00:06]} Nxc3 {[%emt 0:00:02]} 33. Rxd7 {
[%emt 0:00:02]} Rxd7 {[%emt 0:00:03]} 34. f3 {[%emt 0:00:05]} Nd5 {[%emt 0:00:
03]} 35. Qg5 {[%emt 0:00:00]} Rg7 {[%emt 0:00:00]} 36. Rd1 {[%emt 0:00:02]}
Qb6+ {[%emt 0:00:02]} 37. Kh2 {[%emt 0:00:02]} Qc7 {[%emt 0:00:02]} 38. Qh6+ {
[%emt 0:00:01]} Kg8 {[%emt 0:00:00]} 39. Re1 {[%emt 0:00:02]} c3 {[%emt 0:00:
01]} 40. Qg5 {[%emt 0:00:03]} Nb4 {[%emt 0:00:01]} 41. Bb3 {[%emt 0:00:01]} Bd5
{[%emt 0:00:01]} 42. Bxd5 {[%emt 0:00:03]} Nxd5 {[%emt 0:00:01]} 43. Rd1 {
[%emt 0:00:01]} Qxe5+ {[%emt 0:00:01]} 44. Kh1 {[%emt 0:00:01]} Qe2 {[%emt 0:
00:03]} 45. Rg1 {[%emt 0:00:03]} c2 {[%emt 0:00:02]} 46. Qd8+ {[%emt 0:00:02]}
Kh7 {[%emt 0:00:01]} 47. Bb2 {[%emt 0:00:02]} Qc4 {[%emt 0:00:06]} 48. Qf8 {
[%emt 0:00:02]} Qxh4# {[%emt 0:00:02]} 0-1